{"text_format":"1","workbook":"xlsx","n_sheets":3,"sheets":["Part A","Part_B","Part_C"],"not_rendered":{"charts":1,"images":0,"macros":1,"external_links":0,"defined_names":3,"comments":0,"pivot_tables":0},"unopened":[],"bounds":{"document_bytes":16777216,"sheet_cells":100000,"rows_first":2000,"rows_last":500,"rows_between":2000,"halvings":0,"cell_chars":16384,"cell_head_chars":4096},"cells_cut":0,"cells_raw":0,"read":"whole","date_system":"1900"}

{"sheet":"Part A","index":0,"n_rows":93,"n_cols":80,"rows_kept":93,"cut":false,"hidden":false,"merged":[[84,12,84,13],[84,20,85,20],[86,13,86,14],[89,48,89,49],[90,48,90,49],[83,15,83,16],[91,47,91,49],[92,47,92,49],[91,21,91,23],[92,21,92,23],[70,29,70,31],[70,34,70,36],[73,5,73,22],[74,5,74,22],[71,47,71,49],[72,47,72,49],[73,47,73,49],[74,47,74,50],[75,47,75,50],[73,23,73,28],[73,29,73,34],[72,23,72,28],[72,29,72,34],[70,47,70,49],[76,17,76,19],[76,22,76,27],[77,31,77,33],[77,36,77,40],[77,47,77,52],[79,36,79,38],[79,47,79,49],[74,23,74,28],[74,29,74,34],[17,55,17,60],[17,61,17,66],[17,67,17,72],[17,73,17,78],[16,29,16,34],[27,47,27,49],[21,29,21,34],[24,27,24,28],[38,55,38,57],[38,58,38,60],[38,29,38,32],[28,19,32,28],[14,55,14,60],[15,55,15,60],[16,55,16,60],[12,61,12,66],[12,67,12,72],[12,73,12,78],[12,79,12,84],[13,61,13,66],[13,67,13,72],[13,73,13,78],[13,79,13,84],[16,79,16,84],[14,61,14,66],[14,67,14,72],[14,73,14,78],[14,79,14,84],[15,61,15,66],[15,67,15,72],[15,73,15,78],[15,79,15,84],[16,61,16,66],[16,67,16,72],[16,73,16,78],[17,79,17,84],[18,55,18,60],[18,61,18,66],[18,67,18,72],[18,73,18,78],[18,79,18,84],[13,47,13,49],[24,47,24,49],[1,1,4,45],[6,47,6,49],[8,7,8,9],[10,27,10,28],[10,47,10,49],[15,5,15,10],[15,11,15,16],[15,17,15,22],[15,23,15,28],[15,29,15,34],[16,5,16,10],[16,11,16,16],[16,17,16,22],[16,23,16,28],[12,55,12,60],[13,55,13,60],[18,5,18,10],[18,11,18,16],[18,17,18,22],[18,23,18,28],[18,29,18,34],[17,5,17,10],[17,11,17,16],[17,17,17,22],[17,23,17,28],[17,29,17,34],[20,5,20,10],[20,11,20,16],[20,17,20,22],[20,23,20,28],[20,29,20,34],[19,5,19,10],[19,11,19,16],[19,17,19,22],[19,23,19,28],[19,29,19,34],[29,6,29,8],[30,30,30,31],[22,21,22,23],[21,5,21,10],[21,11,21,16],[21,17,21,22],[21,23,21,28],[24,55,24,57],[24,58,24,60],[51,11,51,15],[60,9,60,12],[66,9,66,12],[40,29,40,32],[40,47,40,49],[31,48,31,49],[32,48,32,49],[34,23,34,24],[36,29,36,32],[36,47,36,49],[38,47,38,49],[48,27,48,28],[48,47,48,49]]}
[]
[null,"Online Assessment Questions S2 Level"]
[]
[]
[]
[]
[null,"A relay cycling team consists of ",null,null,null,null,null,null,null,null,null,null,null,null,null,{"$f":"ROUND(RAND()*(9-6)+6,0)","v":8},"people.",null,null,null,"Each person cycles",null,null,null,null,null,null,null,{"$f":"1/P7","v":0.125},"of the total distance of the race.",null,null,null,null,null,null,null,null,null,null,null,null,null,null,null,null,null,{"$f":"(ROUND(RAND()*(20-5)+5,1))*P7","v":121.6}]
[]
[null,"The race was",null,null,null,null,null,{"$f":"AV7","v":121.6},null,null,"km long."]
[]
[null,"How far does each member of the team cycle ?",null,null,null,null,null,null,null,null,null,null,null,null,null,null,null,null,null,null,null,null,null,null,null,null,null,null,null,"km",null,null,null,null,null,null,null,null,null,null,null,null,null,null,null,null,null,{"$f":"AV7/P7","v":15.2}]
[]
[null,null,null,null,null,null,null,null,null,null,null,null,null,null,null,null,null,null,null,null,null,null,null,null,null,null,null,null,null,null,null,null,null,null,null,null,null,null,null,null,null,null,null,null,null,null,null,null,null,null,null,null,null,null,null,"Train Time",null,null,null,null,null,"Monday",null,null,null,null,null,"Tuesday",null,null,null,null,null,"Wednesday",null,null,null,null,null,"Thursday"]
[null,"The table below shows the number of passengers on trains at different times on four days.",null,null,null,null,null,null,null,null,null,null,null,null,null,null,null,null,null,null,null,null,null,null,null,null,null,null,null,null,null,null,null,null,null,null,null,null,null,null,null,null,null,null,null,null,null,null,null,null,null,null,null,null,{"$f":"ROUND(RAND()*(6-2)+2,0)","v":4},"11:00:00",null,null,null,null,null,{"$f":"ROUND(RAND()*(50-15)+15,0)","v":41},null,null,null,null,null,{"$f":"ROUND(RAND()*(50-15)+15,0)","v":41},null,null,null,null,null,{"$f":"ROUND(RAND()*(50-15)+15,0)","v":30},null,null,null,null,null,{"$f":"ROUND(RAND()*(50-15)+15,0)","v":38}]
[null,null,null,null,null,null,null,null,null,null,null,null,null,null,null,null,null,null,null,null,null,null,null,null,null,null,null,null,null,null,null,null,null,null,null,null,null,null,null,null,null,null,null,null,null,null,null,null,null,null,null,null,null,null,null,"12:00:00",null,null,null,null,null,{"$f":"ROUND(RAND()*(50-15)+15,0)","v":28},null,null,null,null,null,25,null,null,null,null,null,30,null,null,null,null,null,37]
[null,null,null,null,null,{"$f":"BD13","v":"Train Time"},null,null,null,null,null,{"$f":"BJ13","v":"Monday"},null,null,null,null,null,{"$f":"BP13","v":"Tuesday"},null,null,null,null,null,{"$f":"BV13","v":"Wednesday"},null,null,null,null,null,{"$f":"CB13","v":"Thursday"},null,null,null,null,null,null,null,null,null,null,null,null,null,null,null,null,null,null,null,null,null,null,null,null,null,"13:00:00",null,null,null,null,null,32,null,null,null,null,null,20,null,null,null,null,null,48,null,null,null,null,null,25]
[null,null,null,null,null,{"$f":"BD14","v":"11:00:00"},null,null,null,null,null,{"$f":"BJ14","v":41},null,null,null,null,null,{"$f":"BP14","v":41},null,null,null,null,null,{"$f":"BV14","v":30},null,null,null,null,null,{"$f":"CB14","v":38},null,null,null,null,null,null,null,null,null,null,null,null,null,null,null,null,null,null,null,null,null,null,null,null,null,"14:00:00",null,null,null,null,null,23,null,null,null,null,null,40,null,null,null,null,null,34,null,null,null,null,null,42]
[null,null,null,null,null,"12:00:00",null,null,null,null,null,28,null,null,null,null,null,25,null,null,null,null,null,30,null,null,null,null,null,37,null,null,null,null,null,null,null,null,null,null,null,null,null,null,null,null,null,null,null,null,null,null,null,null,null,"15:00:00",null,null,null,null,null,36,null,null,null,null,null,34,null,null,null,null,null,33,null,null,null,null,null,30]
[null,null,null,null,null,"13:00:00",null,null,null,null,null,32,null,null,null,null,null,20,null,null,null,null,null,48,null,null,null,null,null,25,null,null,null,null,null,null,null,null,null,null,null,null,null,null,null,null,null,null,null,null,null,null,null,null,null,{"$f":"HLOOKUP(BD13,BD13:BI18,BC14)","v":"13:00:00"},null,null,null,null,null,{"$f":"HLOOKUP(BJ13,BJ13:BO18,BC14)","v":32},null,null,null,null,null,{"$f":"HLOOKUP(BP13,BP13:BU18,BC14)","v":20},null,null,null,null,null,{"$f":"HLOOKUP(BV13,BV13:CA18,BC14)","v":48},null,null,null,null,null,{"$f":"HLOOKUP(CB13,CB13:CG18,BC14)","v":25}]
[null,null,null,null,null,"14:00:00",null,null,null,null,null,23,null,null,null,null,null,40,null,null,null,null,null,34,null,null,null,null,null,42]
[null,null,null,null,null,"15:00:00",null,null,null,null,null,36,null,null,null,null,null,34,null,null,null,null,null,33,null,null,null,null,null,30]
[]
[null,"What is the mean number of passengers on the ",null,null,null,null,null,null,null,null,null,null,null,null,null,null,null,null,null,null,null,{"$f":"BD19","v":"13:00:00"},null,null,"train on the four days ? "]
[]
[null,null,null,null,"Round your answer to the nearest person.",null,null,null,null,null,null,null,null,null,null,null,null,null,null,null,null,null,null,null,null,null,null,null,null,"people",null,null,null,null,null,null,null,null,null,null,null,null,null,null,null,null,null,{"$f":"ROUND(AVERAGE(BJ19:CG19),0)","v":31}]
[]
[]
[null,"Tom draws a scale drawing of his room."]
[]
[null,null,"Scale :",null,null,null,"1 cm",null,null,"=",{"$f":"AW31","v":"2 cm"},null,null,null,null,null,null,null,null,null,null,null,null,null,null,null,null,null,null,null,null,null,null,null,null,null,null,null,null,null,null,null,null,null,null,null,null,null,{"$f":"ROUND(RAND()*(2-2)+2,0)","v":2},"cm"]
[null,null,null,null,null,null,null,null,null,null,null,null,null,null,null,null,null,null,null,null,null,null,null,null,null,null,null,null,null,null,{"$f":"AW32","v":3},null,"cm",null,null,null,null,null,null,null,null,null,null,null,null,null,null,null,{"$f":"CONCATENATE(AW30,\" \",AX30)","v":"2 cm"}]
[null,null,null,null,null,null,null,null,null,null,null,null,null,null,null,null,null,null,null,null,null,null,null,null,null,null,null,null,null,null,null,null,null,null,null,null,null,null,null,null,null,null,null,null,null,null,null,null,{"$f":"ROUND(RAND()*(5-3)+3,0)","v":3}]
[null,null,null,null,null,null,null,null,null,null,null,null,null,null,null,null,null,null,null,null,null,null,null,null,null,null,null,null,null,null,null,null,null,null,null,null,null,null,null,null,null,null,null,null,null,null,null,null,{"$f":"ROUND(RAND()*(2-1)+1,0)+AW32+0.5","v":5.5}]
[]
[null,null,null,null,null,null,null,null,null,null,null,null,null,null,null,null,null,null,null,null,null,null,null,{"$f":"AW33","v":5.5},null,"cm"]
[]
[null,"(a) What is the real life length and width of his room ?",null,null,null,null,null,null,null,null,null,null,null,null,null,null,null,null,null,null,null,null,null,null,null,"Length",null,null,null,null,null,null,null,"m",null,null,null,null,null,null,null,null,null,null,null,null,null,{"$f":"AW30*AW32","v":6}]
[]
[null,null,null,null,null,null,null,null,null,null,null,null,null,null,null,null,null,null,null,null,null,null,null,null,null,"Width ",null,null,null,null,null,null,null,"m",null,null,null,null,null,null,null,null,null,null,null,null,null,{"$f":"AW30*AW33","v":11}]
[]
[null,"(b) What is the area of his room ?",null,null,null,null,null,null,null,null,null,null,null,null,null,null,null,null,null,null,null,null,null,null,null,"Area",null,null,null,null,null,null,null,"m2",null,null,null,null,null,null,null,null,null,null,null,null,null,{"$f":"AV37*AV39","v":66}]
[]
[]
[null,"Daniel solved a problem using his mathematical skills.",null,null,null,null,null,null,null,null,null,null,null,null,null,null,null,null,null,null,null,null,null,null,null,null,null,null,null,null,null,null,null,null,null,null,null,null,null,null,null,null,null,null,null,null,null,null,null,{"$f":"ROUND(RAND()*(9-3)+3,0)","v":5},{"$f":"CHAR(RAND()*(122-112)+112)","v":"y"},"+",{"$f":"ROUND(RAND()*(9-3)+3,0)","v":5},"=",{"$f":"AX44*AX47+BA44","v":40}]
[null,"His answer was",null,null,null,null,null,null,{"$f":"AX47","v":7},"."]
[null,"He started with a number ",null,null,null,null,null,null,null,null,null,null,{"$f":"AY44","v":"y"}]
[null,"then subtracted",null,null,null,null,null,null,{"$f":"BA44","v":5},"and finally divided by",null,null,null,null,null,null,null,null,{"$f":"AX44","v":5},".",null,null,null,null,null,null,null,null,null,null,null,null,null,null,null,null,null,null,null,null,null,null,null,null,null,null,null,null,null,{"$f":"ROUND(RAND()*(9-1)+1,0)","v":7}]
[]
[null,"What number  ",null,null,null,null,null,{"$f":"AY44","v":"y"},"did he start with ?",null,null,null,null,null,null,null,null,null,null,null,null,null,null,null,{"$f":"AY44","v":"y"},"=",null,null,null,null,null,null,null,null,null,null,null,null,null,null,null,null,null,null,null,null,null,{"$f":"BC44","v":40}]
[]
[]
[null,null,"Eve bought a car for ",null,null,null,null,null,null,null,null,{"$f":"BI53","v":50000},null,null,null,null,null,null,null,null,null,null,null,null,null,null,null,null,null,null,null,null,null,null,null,null,null,null,null,null,null,null,null,null,null,null,null,null,null,null,null,null,null,null,null,null,null,null,null,"Year","Cost","High","Low"]
[null,null,null,null,null,null,null,null,null,null,null,null,null,null,null,null,null,null,null,null,null,null,null,null,null,null,null,null,null,null,null,null,null,null,null,null,null,null,null,null,null,null,null,null,null,null,null,null,null,null,null,null,null,null,null,null,null,null,{"$f":"ROUND(RAND()*(10-4)+4,0)","v":10},"0",{"$f":"ROUND(RAND()*(10-4)+4,0)*10000","v":50000},{"$f":"ROUNDUP(BI53,-3)","v":50000},{"$f":"ROUNDDOWN(BI53,-3)","v":50000},{"$f":"IF(BI53<$BI$53/2,BH53,0)","v":0}]
[null,null,"The graph shows the estimated value",null,null,null,null,null,null,null,null,null,null,null,null,null,null,null,null,null,null,null,null,null,null,null,null,null,null,null,null,null,null,null,null,null,null,null,null,null,null,null,null,null,null,null,null,null,null,null,null,null,null,null,null,null,null,null,null,"1",{"$f":"ROUND(BI53*EXP(-0.2),-2)","v":40900},{"$f":"ROUNDUP(BI54,-3)","v":41000},{"$f":"ROUNDDOWN(BI54,-3)","v":40000},{"$f":"IF(BI54<$BI$53/2,BH54,0)","v":0}]
[null,null,"of car at the end of each year for the",null,null,null,null,null,null,null,null,null,null,null,null,null,null,null,null,null,null,null,null,null,null,null,null,null,null,null,null,null,null,null,null,null,null,null,null,null,null,null,null,null,null,null,null,null,null,null,null,null,null,null,null,null,null,null,null,"2",{"$f":"ROUND(BI54*EXP(-0.2),-2)","v":33500},34000,33000,0,{"$f":"ROUND(BI54*(EXP(-0.2)),-2)","v":33500}]
[null,null,"next 10 years.",null,null,null,null,null,null,null,null,null,null,null,null,null,null,null,null,null,null,null,null,null,null,null,null,null,null,null,null,null,null,null,null,null,null,null,null,null,null,null,null,null,null,null,null,null,null,null,null,null,null,null,null,null,null,null,null,"3",27400,28000,27000,0,27400]
[null,null,null,null,null,null,null,null,null,null,null,null,null,null,null,null,null,null,null,null,null,null,null,null,null,null,null,null,null,null,null,null,null,null,null,null,null,null,null,null,null,null,null,null,null,null,null,null,null,null,null,null,null,null,null,null,null,null,null,"4",22400,23000,22000,"4",22400]
[null,null,"(a) About how much less will the value",null,null,null,null,null,null,null,null,null,null,null,null,null,null,null,null,null,null,null,null,null,null,null,null,null,null,null,null,null,null,null,null,null,null,null,null,null,null,null,null,null,null,null,null,null,null,null,null,null,null,null,null,null,null,null,null,"5",18300,19000,18000,"5",18300]
[null,null,"     of Eve's car be after",null,null,null,null,null,null,null,null,null,null,{"$f":"BH64","v":"8"},"years.",null,null,null,null,null,null,null,null,null,null,null,null,null,null,null,null,null,null,null,null,null,null,null,null,null,null,null,null,null,null,null,null,null,null,null,null,null,null,null,null,null,null,null,null,"6",15000,15000,15000,"6",15000]
[null,null,null,null,null,null,null,null,null,null,null,null,null,null,null,null,null,null,null,null,null,null,null,null,null,null,null,null,null,null,null,null,null,null,null,null,null,null,null,null,null,null,null,null,null,null,null,null,null,null,null,null,null,null,null,null,null,null,null,"7",12300,13000,12000,"7",12300]
[null,null,null,null,null,null,null,null,"£",null,null,null,null,null,null,null,null,null,null,null,null,null,null,null,null,null,null,null,null,null,null,null,null,null,null,null,null,null,null,null,null,null,null,null,null,null,null,null,null,null,null,null,null,null,null,null,null,null,null,"8",10100,11000,10000,"8",10100]
[null,null,null,null,null,null,null,null,null,null,null,null,null,null,null,null,null,null,null,null,null,null,null,null,null,null,null,null,null,null,null,null,null,null,null,null,null,null,null,null,null,null,null,null,null,null,null,null,null,null,null,null,null,null,null,null,null,null,null,"9",8300,9000,8000,"9",8300]
[null,null,"(b) After  how many full years will ",null,null,null,null,null,null,null,null,null,null,null,null,null,null,null,null,null,null,null,null,null,null,null,null,null,null,null,null,null,null,null,null,null,null,null,null,null,null,null,null,null,null,null,null,null,null,null,null,null,null,null,null,null,null,null,null,"10",6800,7000,6000,"10",6800]
[null,null,"     the value of Eve's car be approximately",null,null,null,null,null,null,null,null,null,null,null,null,null,null,null,null,null,null,null,null,null,null,null,null,null,null,null,null,null,null,null,null,null,null,null,null,null,null,null,null,null,null,null,null,null,null,null,null,null,null,null,null,null,null,null,null,{"$f":"HLOOKUP(BH52,BH52:BH63,BG53)","v":"8"},{"$f":"HLOOKUP(BI52,BI52:BI63,BG53)","v":10100},{"$f":"HLOOKUP(BJ52,BJ52:BJ63,BG53)","v":11000},{"$f":"HLOOKUP(BK52,BK52:BK63,BG53)","v":10000},"8",null,null,{"$f":"HLOOKUP(BO58,BO58:BT63,BB59)","v":{"$error":"#N/A"}},null,null,null,null,null,{"$f":"HLOOKUP(BU58,BU58:BZ63,BB59)","v":{"$error":"#N/A"}},null,null,null,null,null,{"$f":"HLOOKUP(CA58,CA58:CF63,BB59)","v":{"$error":"#N/A"}}]
[null,null,"half its original value ?",null,null,null,null,null,null,null,null,null,null,null,null,null,null,null,null,null,null,null,null,null,null,null,null,null,null,null,null,null,null,null,null,null,null,null,null,null,null,null,null,null,null,null,null,null,null,null,null,null,null,null,null,null,null,null,null,null,null,{"$f":"BI53-BJ64","v":39000},{"$f":"BI53-BK64","v":40000},4]
[]
[null,null,null,null,null,null,null,null,null,null,null,null,null,"years"]
[]
[]
[null,null,null,null,null,null,null,null,null,null,null,null,null,null,null,null,null,null,null,null,null,null,null,null,null,null,null,null,null,null,null,null,null,null,null,null,null,null,null,null,null,null,null,null,null,null,null,null,null,null,null,null,null,null,null,null,null,null,null,null,{"$f":"ROUND(RAND()*(2000-1960)+1960,0)","v":1994},{"$f":"BI70+1","v":1995}]
[null,null,"The table below shows some information about people in France in ",null,null,null,null,null,null,null,null,null,null,null,null,null,null,null,null,null,null,null,null,null,null,null,null,null,null,{"$f":"BI70","v":1994},null,null,"and",null,{"$f":"BJ70","v":1995},null,null,".",null,null,null,null,null,null,null,null,null,{"$f":"ROUND(RAND()*(190-70)+70,1)","v":146.19999999999999}]
[null,null,null,null,null,null,null,null,null,null,null,null,null,null,null,null,null,null,null,null,null,null,null,null,null,null,null,null,null,null,null,null,null,null,null,null,null,null,null,null,null,null,null,null,null,null,null,{"$f":"AV71+ROUND(RAND()*(2-0.5)+0.5,1)","v":147.39999999999998}]
[null,null,null,null,null,null,null,null,null,null,null,null,null,null,null,null,null,null,null,null,null,null,null,{"$f":"AD71","v":1994},null,null,null,null,null,{"$f":"AI71","v":1995},null,null,null,null,null,null,null,null,null,null,null,null,null,null,null,null,null,{"$f":"ROUND(RAND()*(52-47)+47,1)","v":49.7},null,null,"%"]
[null,null,null,null,null,"Total population (millions)",null,null,null,null,null,null,null,null,null,null,null,null,null,null,null,null,null,{"$f":"AV71","v":146.19999999999999},null,null,null,null,null,{"$f":"AV72","v":147.39999999999998},null,null,null,null,null,null,null,null,null,null,null,null,null,null,null,null,null,{"$f":"AV73+ROUND(RAND()*(2-0.5)+0.5,1)","v":50.300000000000004},null,null,"%"]
[null,null,null,null,null,"Male popoulation ( % of total population)",null,null,null,null,null,null,null,null,null,null,null,null,null,null,null,null,null,{"$f":"AV75","v":"49.7%"},null,null,null,null,null,{"$f":"AV76","v":"50.3%"},null,null,null,null,null,null,null,null,null,null,null,null,null,null,null,null,null,{"$f":"CONCATENATE(AV73,AY73)","v":"49.7%"}]
[null,null,null,null,null,null,null,null,null,null,null,null,null,null,null,null,null,null,null,null,null,null,null,null,null,null,null,null,null,null,null,null,null,null,null,null,null,null,null,null,null,null,null,null,null,null,null,{"$f":"CONCATENATE(AV74,AY74)","v":"50.3%"}]
[null,null,"(a) The total population in the year",null,null,null,null,null,null,null,null,null,null,null,null,null,null,{"$f":"AD71","v":1994},null,null,"was",null,{"$f":"AV71*1000000","v":146200000},null,null,null,null,null,"people."]
[null,null,null,"How many more people were there in the total population in the year",null,null,null,null,null,null,null,null,null,null,null,null,null,null,null,null,null,null,null,null,null,null,null,null,null,null,null,{"$f":"AI71","v":1995},null,null,"?",null,null,null,null,null,null,"people",null,null,null,null,null,{"$f":"(AV72-AV71)*1000000","v":1199999.9999999886}]
[]
[null,null,{"$f":"\"(b) What percentage of the total population in the year \"&AD71","v":"(b) What percentage of the total population in the year 1994"},null,null,null,null,null,null,null,null,null,null,null,null,null,null,null,null,null,null,null,null,null,null,null,null,null,"were female ?",null,null,null,null,null,null,null,null,null,null,"%",null,null,null,null,null,null,null,{"$f":"100-AV73","v":50.3}]
[]
[]
[]
[null,null,null,null,null,null,null,null,null,null,null,null,null,null,null,{"$f":"AW91","v":128}]
[null,null,null,null,null,null,null,null,null,null,null,null,{"$f":"AV90","v":"r"},null,null,null,null,null,null,null,{"$f":"AV91","v":"x"}]
[]
[null,null,null,null,null,null,null,null,null,null,null,null,null,{"$f":"AW90","v":75}]
[]
[]
[null,null,"The lines marked",null,null,null,null,null,null,null,null,null,null,null,"in this diagram are parallel.",null,null,null,null,null,null,null,null,null,null,null,null,null,null,null,null,null,null,null,null,null,null,null,null,null,null,null,null,null,null,null,null,{"$f":"CHAR(RAND()*(117-112)+112)","v":"r"},{"$f":"ROUND(RAND()*(79-62)+62,0)","v":75}]
[null,null,null,null,null,null,null,null,null,null,null,null,null,null,null,null,null,null,null,null,null,null,null,null,null,null,null,null,null,null,null,null,null,null,null,null,null,null,null,null,null,null,null,null,null,null,null,{"$f":"CHAR(RAND()*(122-118)+118)","v":"x"},{"$f":"ROUND(RAND()*(135-121)+121,0)","v":128}]
[null,null,"Work out the values of",null,null,null,null,null,null,null,null,null,{"$f":"AV90","v":"r"},"and",null,{"$f":"AV91","v":"x"},".",null,null,"q","=",null,null,null,"o",null,null,null,null,null,null,null,null,null,null,null,null,null,null,null,null,null,null,null,null,null,null,{"$f":"180-N87","v":105}]
[null,null,null,null,null,null,null,null,null,null,null,null,null,null,null,null,null,null,null,"v","=",null,null,null,"o",null,null,null,null,null,null,null,null,null,null,null,null,null,null,null,null,null,null,null,null,null,null,{"$f":"180-AW91","v":52}]

{"sheet":"Part_B","index":1,"n_rows":71,"n_cols":52,"rows_kept":71,"cut":false,"hidden":false,"merged":[[1,1,4,45],[10,27,10,28],[10,47,10,49],[6,24,6,27],[6,47,6,50],[8,9,8,12],[7,47,7,50],[7,34,7,39],[8,47,8,53],[6,34,6,39],[41,6,42,6],[41,7,42,7],[42,48,42,49],[41,48,41,49],[41,8,41,9],[42,8,42,9],[24,55,24,57],[24,58,24,60],[28,29,28,32],[28,47,28,49],[33,55,33,57],[33,58,33,60],[16,30,16,31],[17,48,17,49],[20,23,20,24],[19,29,19,32],[19,47,19,50],[57,6,57,8],[68,48,68,49],[69,48,69,49],[70,47,70,49],[70,24,70,26],[63,12,64,16],[63,17,64,21],[63,22,64,26],[63,27,64,31],[61,12,62,36],[63,32,64,36],[37,29,37,32],[37,47,37,49],[45,21,45,24],[48,47,48,50],[52,47,52,50],[52,27,52,29],[45,47,45,51],[45,27,45,30],[55,48,55,50],[57,9,57,10],[57,11,57,13],[57,14,57,15],[57,16,57,18],[57,48,57,51],[56,48,56,49]]}
[]
[null,"Online Assessment Questions S2"]
[]
[]
[]
[]
[null,"Mr Jenning's car should be serviced after it has gone",null,null,null,null,null,null,null,null,null,null,null,null,null,null,null,null,null,null,null,null,null,null,{"$f":"AV7","v":17000},null,null,null,"miles.",null,null,null,null,null,"Service after",null,null,null,null,null,null,null,null,null,null,null,null,{"$f":"(ROUND(RAND()*(18-8)+8,0))*1000","v":17000},null,null,null,"miles"]
[null,null,null,null,null,null,null,null,null,null,null,null,null,null,null,null,null,null,null,null,null,null,null,null,null,null,null,null,null,null,null,null,null,null,{"$f":"AV9","v":"17000 miles"},null,null,null,null,null,null,null,null,null,null,null,null,{"$f":"AV7-AV7*ROUND(RAND()*(0.8-0.2)+0.2,3)","v":6936}]
[null,"The car has gone ",null,null,null,null,null,null,null,{"$f":"AV8","v":6936},null,null,null,"miles.",null,null,null,null,null,null,null,null,null,null,null,null,null,null,null,null,null,null,null,null,null,null,null,null,null,null,null,null,null,null,null,null,null,{"$f":"CONCATENATE(AV7,\" \",AZ7)","v":"17000 miles"}]
[]
[null,"How many more miles can it go before it should be serviced ?",null,null,null,null,null,null,null,null,null,null,null,null,null,null,null,null,null,null,null,null,null,null,null,null,null,null,null,"miles",null,null,null,null,null,null,null,null,null,null,null,null,null,null,null,null,null,{"$f":"AV7-AV8","v":10064}]
[]
[null,null,null,null,null,null,null,null,null,null,null,null,null,null,null,null,null,null,null,null,null,null,null,null,null,null,null,null,null,null,null,null,null,null,null,null,null,null,null,null,null,null,null,null,null,null,null,{"$f":"ROUND(RAND()*(3-1)+1,0)","v":2},"blue","yellow","green"]
[null,"Patrick has a bag of marbles.",null,null,null,null,null,null,null,null,null,null,null,null,null,null,null,null,null,null,null,null,null,null,null,null,null,null,null,null,null,null,null,null,null,null,null,null,null,null,null,null,null,null,null,null,null,null,"orange","blue","red"]
[null,null,null,null,null,null,null,null,null,null,null,null,null,null,null,null,null,null,null,null,null,null,null,null,null,null,null,null,null,null,null,null,null,null,null,null,null,null,null,null,null,null,null,null,null,null,null,null,"purple","black","silver"]
[null,{"$f":"\"There are an equal number of \"&AW16&\" , \"&AX16&\" , \"&AY16&\" marbles in the bag.\"","v":"There are an equal number of orange , blue , red marbles in the bag."},null,null,null,null,null,null,null,null,null,null,null,null,null,null,null,null,null,null,null,null,null,null,null,null,null,null,null,null,null,null,null,null,null,null,null,null,null,null,null,null,null,null,null,null,null,null,{"$f":"HLOOKUP(AW13,AW13:AW15,AV13)","v":"orange"},{"$f":"HLOOKUP(AX13,AX13:AX15,AV13)","v":"blue"},{"$f":"HLOOKUP(AY13,AY13:AY15,AV13)","v":"red"}]
[]
[null,"Patrick chooses a marble at random."]
[]
[null,{"$f":"\"What is the probability that it is NOT a \"&AW16&\" marble ?\"","v":"What is the probability that it is NOT a orange marble ?"},null,null,null,null,null,null,null,null,null,null,null,null,null,null,null,null,null,null,null,null,null,null,null,null,null,null,null,null,null,null,null,"Fraction format eg 1/4",null,null,null,null,null,null,null,null,null,null,null,null,null,0.66666666666666663]
[]
[]
[null,{"$f":"\"(a) Paul has a bag of apples.\"","v":"(a) Paul has a bag of apples."},null,null,null,null,null,null,null,null,null,null,null,null,null,null,null,null,null,null,null,null,null,null,null,null,null,null,null,null,null,null,null,null,null,null,null,null,null,null,null,null,null,null,null,null,null,{"$f":"ROUND(RAND()*(9-3)+3,0)","v":3}]
[null,null,null,null,null,null,null,null,null,null,null,null,null,null,null,null,null,null,null,null,null,null,null,null,null,null,null,null,null,null,null,null,null,null,null,null,null,null,null,null,null,null,null,null,null,null,null,{"$f":"CHAR(RAND()*(102-97)+97)","v":"b"}]
[null,"You cannot see how many apples are in the bag."]
[]
[null,"Call the number of apples in Paul's bag",null,null,null,null,null,null,null,null,null,null,null,null,null,null,null,{"$f":"AV24","v":"b"},".","Paul puts ",null,null,null,{"$f":"AV23","v":3},"more apples into his bag."]
[]
[null,"Write an expression for the number of apples in Paul's now.",null,null,null,null,null,null,null,null,null,null,null,null,null,null,null,null,null,null,null,null,null,null,null,null,null,null,null,null,null,null,null," pencils",null,null,null,null,null,null,null,null,null,null,null,null,null,{"$f":"CONCATENATE(AV24,\"+\",AV23)","v":"b+3"}]
[]
[]
[null,{"$f":"\"(b) Linda has \"&AV32&\" boxes of pencils.\"","v":"(b) Linda has 6 boxes of pencils."},null,null,null,null,null,null,null,null,null,null,null,null,null,null,null,null,null,null,null,null,null,null,null,null,null,null,null,null,null,null,null,null,null,null,null,null,null,null,null,null,null,null,null,null,null,{"$f":"ROUND(RAND()*(9-3)+3,0)","v":6}]
[null,null,null,null,null,null,null,null,null,null,null,null,null,null,null,null,null,null,null,null,null,null,null,null,null,null,null,null,null,null,null,null,null,null,null,null,null,null,null,null,null,null,null,null,null,null,null,{"$f":"CHAR(RAND()*(122-112)+112)","v":"s"}]
[null,"There the same number of pencils in each of Linda's boxes."]
[]
[null,"Call the number of pencils in each of Linda's  boxes",null,null,null,null,null,null,null,null,null,null,null,null,null,null,null,null,null,null,null,null,null,{"$f":"AV33","v":"s"},"."]
[]
[null,{"$f":"\"Write an expression for the number of pencils in Linda's \"&AV32&\" boxes.\"","v":"Write an expression for the number of pencils in Linda's 6 boxes."},null,null,null,null,null,null,null,null,null,null,null,null,null,null,null,null,null,null,null,null,null,null,null,null,null,null,null,null,null,null,null," pencils",null,null,null,null,null,null,null,null,null,null,null,null,null,{"$f":"CONCATENATE(AV32,AV33)","v":"6s"}]
[]
[]
[null,"Calculate",null,null,null,null,null,null,null,null,null,null,null,null,null,null,null,null,null,null,null,null,null,null,null,null,null,null,null,null,null,null,null,null,null,null,null,null,null,null,null,null,null,null,null,null,null,null,{"$f":"ROUND(RAND()*(9-3)+3,0)","v":3}]
[null,null,null,null,null,null,{"$f":"AW41","v":3},"-",{"$f":"AW42","v":5},null,null,null,null,null,null,null,null,null,null,null,null,null,null,null,null,null,null,null,null,null,null,null,null,null,null,null,null,null,null,null,null,null,null,null,null,null,null,null,{"$f":"2*ROUND(RAND()*(4-1)+1,0)+1","v":5}]
[null,null,null,null,null,null,null,null,{"$f":"AW43","v":7},null,null,null,null,null,null,null,null,null,null,null,null,null,null,null,null,null,null,null,null,null,null,null,null,null,null,null,null,null,null,null,null,null,null,null,null,null,null,null,{"$f":"AW42+2","v":7}]
[]
[]
[null,null,null,null,null,null,null,null,null,null,null,null,null,null,null,null,null,null,null,null,null,"answer",null,null,null,"=",null,null,null,null,null,null,null,null,null,null,null,null,null,null,null,null,null,null,null,null,null,{"$f":"AW41-(AW42/AW43)","v":2.2857142857142856}]
[]
[]
[null,{"$f":"\"Bernadette works part-time in a Factory. She earns £ \"&AV49&\" for every hour she works.\"","v":"Bernadette works part-time in a Factory. She earns £ 16.89 for every hour she works."},null,null,null,null,null,null,null,null,null,null,null,null,null,null,null,null,null,null,null,null,null,null,null,null,null,null,null,null,null,null,null,null,null,null,null,null,null,null,null,null,null,null,null,null,null,{"$f":"(ROUND(RAND()*(18-8)+8,2))","v":16.89}]
[null,null,null,null,null,null,null,null,null,null,null,null,null,null,null,null,null,null,null,null,null,null,null,null,null,null,null,null,null,null,null,null,null,null,null,null,null,null,null,null,null,null,null,null,null,null,null,{"$f":"ROUND(RAND()*(6-3)+3,0)","v":4}]
[null,{"$f":"\"She works \"&AV50&\" hours on Wednesday and \"&AV51&\" hours on Frday.\"","v":"She works 4 hours on Wednesday and 2 hours on Frday."},null,null,null,null,null,null,null,null,null,null,null,null,null,null,null,null,null,null,null,null,null,null,null,null,null,null,null,null,null,null,null,null,null,null,null,null,null,null,null,null,null,null,null,null,null,{"$f":"ROUND(RAND()*(4-2)+2,0)","v":2}]
[]
[null,"How much does Bernadette earn altogether ?",null,null,null,null,null,null,null,null,null,null,null,null,null,null,null,null,null,null,null,null,null,null,null,null,"£",null,null,null,null,null,null,null,null,null,null,null,null,null,null,null,null,null,null,null,null,{"$f":"AV49*(AV50+AV51)","v":101.34}]
[]
[]
[null,"What number goes in the box ?",null,null,null,null,null,null,null,null,null,null,null,null,null,null,null,null,null,null,null,null,null,null,null,null,null,null,null,null,null,null,null,null,null,null,null,null,null,null,null,null,null,null,null,null,null,null,{"$f":"ROUND(RAND()*(10-3)+3,0)*AW57","v":2.5}]
[null,null,null,null,null,null,null,null,null,null,null,null,null,null,null,null,null,null,null,null,null,null,null,null,null,null,null,null,null,null,null,null,null,null,null,null,null,null,null,null,null,null,null,null,null,null,null,null,{"$f":"ROUND(RAND()*(4-1)*1,0)+0.5","v":0.5}]
[null,null,null,null,null,null,{"$f":"AW56","v":2.5},null,null,"÷",null,null,null,null,"=",null,{"$f":"AW57","v":0.5},null,null,null,null,null,null,null,null,null,null,null,null,null,null,null,null,null,null,null,null,null,null,null,null,null,null,null,null,null,null,null,{"$f":"AW56/AW57","v":5}]
[]
[]
[]
[null,null,null,null,null,null,null,null,null,null,null,null,"Fruit Sale"]
[]
[null,null,null,null,null,null,null,null,null,null,null,null,"Melon",null,null,null,null,"Apple",null,null,null,null,"Orange",null,null,null,null,"Bananna",null,null,null,null,"Grapes"]
[]
[]
[null,{"$f":"\"Richard wants to choose \"&AW69&\" different pieces of fruit.\"","v":"Richard wants to choose 3 different pieces of fruit."}]
[]
[null,null,null,null,null,null,null,null,null,null,null,null,null,null,null,null,null,null,null,null,null,null,null,null,null,null,null,null,null,null,null,null,null,null,null,null,null,null,null,null,null,null,null,null,null,null,null,null,{"$f":"ROUND(RAND()*(4-2)+2,0)","v":3}]
[]
[null,"How many different combinations could he choose ?",null,null,null,null,null,null,null,null,null,null,null,null,null,null,null,null,null,null,null,null,null,null,null,null,null,null,null,null,null,null,null,null,null,null,null,null,null,null,null,null,null,null,null,null,null,{"$f":"COMBIN(5,AW69)","v":10}]

{"sheet":"Part_C","index":2,"n_rows":94,"n_cols":97,"rows_kept":94,"cut":false,"hidden":false,"merged":[[91,29,91,31],[92,29,92,31],[93,29,93,31],[83,28,83,39],[85,2,85,4],[86,2,86,4],[87,2,87,4],[88,2,88,4],[89,2,89,4],[90,2,90,4],[91,2,91,4],[92,2,92,4],[93,2,93,4],[85,29,85,31],[86,29,86,31],[83,2,83,13],[87,29,87,31],[88,29,88,31],[89,29,89,31],[90,29,90,31],[69,85,69,90],[70,85,70,90],[71,85,71,90],[72,85,72,90],[67,55,67,60],[67,61,67,66],[67,67,67,72],[67,73,67,78],[67,79,67,84],[67,85,67,90],[70,55,70,60],[70,61,70,66],[70,67,70,72],[70,73,70,78],[70,79,70,84],[29,27,29,28],[29,47,29,49],[20,15,20,17],[20,23,20,25],[20,18,20,20],[22,23,22,24],[65,85,65,90],[66,85,66,90],[68,85,68,90],[34,55,34,57],[34,58,34,60],[44,55,44,57],[44,58,44,60],[48,29,48,32],[68,55,68,60],[68,61,68,66],[68,67,68,72],[68,73,68,78],[68,79,68,84],[65,79,65,84],[66,55,66,60],[66,61,66,66],[66,67,66,72],[66,73,66,78],[20,5,20,7],[20,8,20,9],[20,12,20,13],[1,1,4,45],[10,3,10,5],[10,7,10,9],[10,11,10,14],[12,3,12,5],[12,7,12,9],[12,11,12,14],[8,11,8,13],[8,15,8,17],[8,19,8,22],[17,5,17,12],[17,14,17,21],[10,47,10,49],[18,30,18,31],[19,48,19,49],[38,29,38,32],[40,29,40,32],[34,29,34,31],[33,34,33,36],[32,34,32,36],[66,47,66,49],[63,7,63,10],[65,55,65,60],[65,61,65,66],[65,67,65,72],[65,73,65,78],[53,13,53,16],[55,7,55,10],[57,13,57,16],[59,7,59,10],[61,13,61,16],[66,79,66,84],[69,55,69,60],[69,61,69,66],[69,67,69,72],[69,73,69,78],[69,79,69,84],[69,5,69,10],[69,11,69,16],[69,17,69,22],[69,23,69,28],[69,29,69,34],[69,35,69,40],[70,5,70,10],[70,11,70,16],[70,17,70,22],[70,23,70,28],[70,29,70,34],[72,79,72,84],[72,5,72,10],[72,11,72,16],[72,17,72,22],[72,23,72,28],[72,29,72,34],[71,55,71,60],[71,61,71,66],[71,67,71,72],[71,73,71,78],[71,79,71,84],[71,5,71,10],[71,11,71,16],[71,17,71,22],[71,23,71,28],[71,29,71,34],[70,35,70,40],[71,35,71,40],[73,5,73,10],[73,11,73,16],[73,17,73,22],[73,23,73,28],[73,29,73,34],[72,55,72,60],[72,61,72,66],[72,67,72,72],[72,73,72,78],[72,35,72,40],[73,35,73,40],[78,55,78,57],[78,58,78,60],[74,5,74,10],[74,11,74,16],[74,17,74,22],[74,23,74,28],[74,29,74,34],[78,39,78,41],[74,35,74,40],[76,38,76,44]]}
[]
[null,"Online Assessment Questions S2"]
[]
[]
[]
[]
[null,"Using the number fact below to help you to fill in the gaps.",null,null,null,null,null,null,null,null,null,null,null,null,null,null,null,null,null,null,null,null,null,null,null,null,null,null,null,null,null,null,null,null,null,null,null,null,null,null,null,null,null,null,null,null,null,{"$f":"(ROUND(RAND()*(399-123)+123,0))","v":180},{"$f":"ROUND(RAND()*(1-0)+0,0)","v":0}]
[null,null,null,null,null,null,null,null,null,null,null,null,null,null,null,null,null,null,null,null,null,null,null,null,null,null,null,null,null,null,null,null,null,null,null,null,null,null,null,null,null,null,null,null,null,null,null,{"$f":"ROUND(RAND()*(8-5)+5,0)*AW12","v":14}]
[null,null,null,null,null,null,null,null,null,null,null,{"$f":"AV7","v":180},null,null,"x",{"$f":"AV8","v":14},null,null,"=",{"$f":"AV7*AV8","v":2520},null,null,null,null,null,null,null,null,null,null,null,null,null,null,null,null,null,null,null,null,null,null,null,null,null,null,null,{"$f":"IF(AW7=1,AV7+1,AV7-1)","v":179}]
[]
[null,"(a)",null,{"$f":"AV9","v":179},null,null,"x",{"$f":"AV8","v":14},null,null,"=",null,null,null,null,null,null,null,null,null,null,null,null,null,null,null,null,null,null,null,null,null,null,null,null,null,null,null,null,null,null,null,null,null,null,null,null,{"$f":"AV8*AV9","v":2506}]
[null,null,null,null,null,null,null,null,null,null,null,null,null,null,null,null,null,null,null,null,null,null,null,null,null,null,null,null,null,null,null,null,null,null,null,null,null,null,null,null,null,null,null,null,null,null,null,null,{"$f":"ROUND(RAND()*(6-2)+2,0)","v":2}]
[null,"(b)",null,{"$f":"AW13*AV9","v":1253},null,null,"÷",null,null,null,"=",{"$f":"AV9","v":179},null,null,null,null,null,null,null,null,null,null,null,null,null,null,null,null,null,null,null,null,null,null,null,null,null,null,null,null,null,null,null,null,null,null,null,null,{"$f":"AV8/AW12","v":7}]
[null,null,null,null,null,null,null,null,null,null,null,null,null,null,null,null,null,null,null,null,null,null,null,null,null,null,null,null,null,null,null,null,null,null,null,null,null,null,null,null,null,null,null,null,null,null,null,null,null,null,"Fraction","Percentage"]
[null,null,null,null,null,null,null,null,null,null,null,null,null,null,null,null,null,null,null,null,null,null,null,null,null,null,null,null,null,null,null,null,null,null,null,null,null,null,null,null,null,null,null,null,null,null,null,20,{"$f":"AZ22","v":50},{"$f":"ROUND(RAND()*(8-2)+2,0)","v":2},0.5,{"$f":"AY15*100","v":50}]
[null,"Fill in the gaps. The first pair is done for you.",null,null,null,null,null,null,null,null,null,null,null,null,null,null,null,null,null,null,null,null,null,null,null,null,null,null,null,null,null,null,null,null,null,null,null,null,null,null,null,null,null,null,null,null,null,{"$f":"AV15*2","v":40},{"$f":"ROUND(RAND()*(15-3)+3,0)*10","v":120},null,0.1,{"$f":"AY16*100","v":10}]
[null,null,null,null,null,null,null,null,null,null,null,null,null,null,null,null,null,null,null,null,null,null,null,null,null,null,null,null,null,null,null,null,null,null,null,null,null,null,null,null,null,null,null,null,null,null,null,{"$f":"AV15/100*AV16","v":8},{"$f":"AW15/100*AW16","v":60},null,0.25,25]
[null,null,null,null,null,{"$f":"AV17&\" is \"&AV15&\" % of \"&AV16","v":"8 is 20 % of 40"},null,null,null,null,null,null,null,null,{"$f":"AV16&\" is \"&AV18&\" % of \"&AV17","v":"40 is 500 % of 8"},null,null,null,null,null,null,null,null,null,null,null,null,null,null,null,null,null,null,null,null,null,null,null,null,null,null,null,null,null,null,null,null,{"$f":"AV16/AV17*100","v":500},{"$f":"AW16/AW17*100","v":200},null,{"$f":"1/5","v":0.2},20]
[null,null,null,null,null,null,null,null,null,null,null,null,null,null,null,null,null,null,null,null,null,null,null,null,null,null,null,null,null,null,null,null,null,null,null,null,null,null,null,null,null,null,null,null,null,null,null,null,null,null,0.4,40]
[null,null,null,null,null,null,null,null,null,null,null,null,null,null,null,null,null,null,null,null,null,null,null,null,null,null,null,null,null,null,null,null,null,null,null,null,null,null,null,null,null,null,null,null,null,null,null,null,null,null,{"$f":"1/10","v":0.1},10]
[null,null,null,null,null,{"$f":"AW17&\" is \"","v":"60 is "},null,null,null,null,"% of",null,{"$f":"AW16","v":120},null,null,{"$f":"AW16&\" is \"","v":"120 is "},null,null,null,null,null,"% of",null,{"$f":"AW17","v":60},null,null,null,null,null,null,null,null,null,null,null,null,null,null,null,null,null,null,null,null,null,null,null,null,null,null,{"$f":"4/5","v":0.8},80]
[null,null,null,null,null,null,null,null,null,null,null,null,null,null,null,null,null,null,null,null,null,null,null,null,null,null,null,null,null,null,null,null,null,null,null,null,null,null,null,null,null,null,null,null,null,null,null,null,null,null,{"$f":"HLOOKUP(AY14,AY14:AZ21,AX15)","v":0.5},{"$f":"HLOOKUP(AZ14,AY14:AZ21,AX15)","v":50}]
[]
[]
[null,"Frances solved a problem using her mathematical skills.",null,null,null,null,null,null,null,null,null,null,null,null,null,null,null,null,null,null,null,null,null,null,null,null,null,null,null,null,null,null,null,null,null,null,null,null,null,null,null,null,null,null,null,null,null,null,{"$f":"ROUND(RAND()*(9-2)+2,0)","v":5},{"$f":"1/AW25","v":0.2},{"$f":"CHAR(RAND()*(122-112)+112)","v":"w"},"+",{"$f":"ROUND(RAND()*(9-3)+3,0)","v":4},"=",{"$f":"AW28*AX25-BA25","v":-2}]
[null,{"$f":"\"Her answer was \"&AW28&\" .\"","v":"Her answer was 10 ."},null,null,null,null,null,null,null,"."]
[null,"She started with a number ",null,null,null,null,null,null,null,null,null,null,{"$f":"AY25","v":"w"}]
[null,{"$f":"\"then added \"&BA25&\" and finally multiply by \"&AW25&\" .\"","v":"then added 4 and finally multiply by 5 ."},null,null,null,null,null,null,null,null,null,null,null,null,null,null,null,null,null,null,null,null,null,null,null,null,null,null,null,null,null,null,null,null,null,null,null,null,null,null,null,null,null,null,null,null,null,null,{"$f":"ROUND(RAND()*(5-2)+2,0)*AW25","v":10},{"$f":"AW28*AX25","v":2}]
[]
[null,"What number  ",null,null,null,null,null,{"$f":"AY25","v":"w"},"did she start with ?",null,null,null,null,null,null,null,null,null,null,null,null,null,null,null,{"$f":"AY25","v":"w"},"=",null,null,null,null,null,null,null,null,null,null,null,null,null,null,null,null,null,null,null,null,null,{"$f":"BC25","v":-2}]
[]
[]
[null,{"$f":"\"(a) Caitlin and Paul have some blocks that are cuboidal in shape.\"","v":"(a) Caitlin and Paul have some blocks that are cuboidal in shape."},null,null,null,null,null,null,null,null,null,null,null,null,null,null,null,null,null,null,null,null,null,null,null,null,null,null,null,null,null,null,null,null,{"$f":"AX35","v":"1 cm"},null,null,null,null,null,null,null,null,null,null,null,null,{"$f":"ROUND(RAND()*(9-2)+2,0)","v":9},"cm",{"$f":"CONCATENATE(AV33,\" \",AW33)","v":"9 cm"}]
[null,null,null,null,null,null,null,null,null,null,null,null,null,null,null,null,null,null,null,null,null,null,null,null,null,null,null,null,null,null,null,null,null,null,{"$f":"AX34","v":"9 cm"},null,null,null,null,null,null,null,null,null,null,null,null,{"$f":"AV33","v":9},"cm",{"$f":"CONCATENATE(AV34,\" \",AW34)","v":"9 cm"}]
[null,{"$f":"\"They measure \"&AV33&\" cm by \"&AV34&\" cm by \"&AV35&\" cm.\"","v":"They measure 9 cm by 9 cm by 1 cm."},null,null,null,null,null,null,null,null,null,null,null,null,null,null,null,null,null,null,null,null,null,null,null,null,null,null,null,{"$f":"AX33","v":"9 cm"},null,null,null,null,null,null,null,null,null,null,null,null,null,null,null,null,null,1,"cm","1 cm"]
[]
[null,"Caitlin makes the smallest cube she can with the blocks."]
[]
[null,"How many blocks does she use to the cube ?",null,null,null,null,null,null,null,null,null,null,null,null,null,null,null,null,null,null,null,null,null,null,null,null,null,null,null,null,null,null,null,"blocks",null,null,null,null,null,null,null,null,null,null,null,null,null,{"$f":"AV33","v":9}]
[]
[null,"What is the volume of the cube ?",null,null,null,null,null,null,null,null,null,null,null,null,null,null,null,null,null,null,null,null,null,null,null,null,null,null,null,null,null,null,null,"cm3",null,null,null,null,null,null,null,null,null,null,null,null,null,{"$f":"POWER(AV39,3)","v":729}]
[]
[null,{"$f":"\"(b) Paul begins to make up a bigger cube with the blocks.\"","v":"(b) Paul begins to make up a bigger cube with the blocks."}]
[]
[null,"He uses four blocks to make the base of his cube."]
[]
[]
[]
[null,"How many blocks does Paul use altogether to make his cube ?",null,null,null,null,null,null,null,null,null,null,null,null,null,null,null,null,null,null,null,null,null,null,null,null,null,null,null,null,null,null,null,"blocks",null,null,null,null,null,null,null,null,null,null,null,null,null,{"$f":"4*2*AV39","v":72}]
[]
[]
[null,"Fill in the gaps to complete the mathematical sentences."]
[]
[null,"odd number + odd number =",null,null,null,null,null,null,null,null,null,null,null,null,null,null,null,"number",null,null,null,null,null,null,null,null,null,null,null,null,null,null,null,null,null,null,null,null,null,null,null,null,null,null,null,null,null,"even"]
[]
[null,"even number +",null,null,null,null,null,null,null,null,null,"number = odd number",null,null,null,null,null,null,null,null,null,null,null,null,null,null,null,null,null,null,null,null,null,null,null,null,null,null,null,null,null,null,null,null,null,null,null,"odd"]
[]
[null,"even number - even number =",null,null,null,null,null,null,null,null,null,null,null,null,null,null,null,"number",null,null,null,null,null,null,null,null,null,null,null,null,null,null,null,null,null,null,null,null,null,null,null,null,null,null,null,null,null,"even"]
[]
[null,"odd number - ",null,null,null,null,null,null,null,null,null,"number = odd number",null,null,null,null,null,null,null,null,null,null,null,null,null,null,null,null,null,null,null,null,null,null,null,null,null,null,null,null,null,null,null,null,null,null,null,"even"]
[]
[null,"odd number x odd number =",null,null,null,null,null,null,null,null,null,null,null,null,null,null,null,"number",null,null,null,null,null,null,null,null,null,null,null,null,null,null,null,null,null,null,null,null,null,null,null,null,null,null,null,null,null,"odd"]
[]
[null,"odd number x ",null,null,null,null,null,null,null,null,null,"number = even number",null,null,null,null,null,null,null,null,null,null,null,null,null,null,null,null,null,null,null,null,null,null,null,null,null,null,null,null,null,null,null,null,null,null,null,"even"]
[]
[null,null,null,null,null,null,null,null,null,null,null,null,null,null,null,null,null,null,null,null,null,null,null,null,null,null,null,null,null,null,null,null,null,null,null,null,null,null,null,null,null,null,null,null,null,null,null,null,null,null,null,null,null,null,{"$f":"ROUND(RAND()*(5-1)+1,0)","v":4},"Day",null,null,null,null,null,{"$f":"L70","v":"07:00 - 07:59"},null,null,null,null,null,{"$f":"R70","v":"08:00 - 08:59"},null,null,null,null,null,{"$f":"X70","v":"09:00 - 09:59"},null,null,null,null,null,{"$f":"AD70","v":"10:00 - 10:59"},null,null,null,null,null,{"$f":"AJ70","v":"11:00 - 11:59"}]
[null,"The council records the number of cars passing a busy road junction each hour, over a five day period.",null,null,null,null,null,null,null,null,null,null,null,null,null,null,null,null,null,null,null,null,null,null,null,null,null,null,null,null,null,null,null,null,null,null,null,null,null,null,null,null,null,null,null,null,null,null,null,null,null,null,null,null,{"$f":"ROUND(RAND()*(5-2)+2,0)","v":2},"Monday",null,null,null,null,null,{"$f":"IF(CO67=OR(CP67,CQ67,CR67,CS67),101+ROUND(RAND()*(3-1)+1,0),CO67)","v":87},null,null,null,null,null,{"$f":"IF(CP67=CO67,101,CP67)","v":94},null,null,null,null,null,{"$f":"IF(OR(CO67-CQ67=0,CP67-CQ67=0),102,CQ67)","v":78},null,null,null,null,null,{"$f":"IF(OR(CO67-CR67=0,CP67-CR67=0,CQ67-CR67=0),103,CR67)","v":99},null,null,null,null,null,{"$f":"IF(OR(CO67-CS67=0,CP67-CS67=0,CQ67-CS67=0,CR67-CS67=0),104,CS67)","v":104},null,null,null,null,null,null,{"$f":"ROUND(RAND()*(100-40)+40,0)","v":87},{"$f":"ROUND(RAND()*(100-40)+40,0)","v":94},78,{"$f":"ROUND(RAND()*(100-40)+40,0)","v":99},99]
[null,"The results are shwn below.",null,null,null,null,null,null,null,null,null,null,null,null,null,null,null,null,null,null,null,null,null,null,null,null,null,null,null,null,null,null,null,null,null,null,null,null,null,null,null,null,null,null,null,null,null,null,null,null,null,null,null,null,null,"Tuesday",null,null,null,null,null,{"$f":"IF(CO68=OR(CP68,CQ68,CR68,CS68),101+ROUND(RAND()*(3-1)+1,0),CO68)","v":79},null,null,null,null,null,{"$f":"IF(CP68=CO68,101,CP68)","v":81},null,null,null,null,null,{"$f":"IF(OR(CO68-CQ68=0,CP68-CQ68=0),102,CQ68)","v":97},null,null,null,null,null,{"$f":"IF(OR(CO68-CR68=0,CP68-CR68=0,CQ68-CR68=0),103,CR68)","v":73},null,null,null,null,null,{"$f":"IF(OR(CO68-CS68=0,CP68-CS68=0,CQ68-CS68=0,CR68-CS68=0),104,CS68)","v":104},null,null,null,null,null,null,{"$f":"ROUND(RAND()*(100-40)+40,0)","v":79},81,97,73,81]
[null,null,null,null,null,null,null,null,null,null,null,null,null,null,null,null,null,null,null,null,null,null,null,null,null,null,null,null,null,null,null,null,null,null,null,null,null,null,null,null,null,null,null,null,null,null,null,null,null,null,null,null,null,null,null,"Wednesday",null,null,null,null,null,80,null,null,null,null,null,95,null,null,null,null,null,69,null,null,null,null,null,57,null,null,null,null,null,81,null,null,null,null,null,null,80,95,69,57,81]
[null,null,null,null,null,{"$f":"BD66","v":"Day"},null,null,null,null,null,"07:00 - 07:59",null,null,null,null,null,"08:00 - 08:59",null,null,null,null,null,"09:00 - 09:59",null,null,null,null,null,"10:00 - 10:59",null,null,null,null,null,"11:00 - 11:59",null,null,null,null,null,null,null,null,null,null,null,null,null,null,null,null,null,null,null,"Thursday",null,null,null,null,null,73,null,null,null,null,null,70,null,null,null,null,null,95,null,null,null,null,null,62,null,null,null,null,null,74,null,null,null,null,null,null,73,70,95,62,74]
[null,null,null,null,null,"Monday",null,null,null,null,null,{"$f":"BJ67","v":87},null,null,null,null,null,{"$f":"BP67","v":94},null,null,null,null,null,{"$f":"BV67","v":78},null,null,null,null,null,{"$f":"CB67","v":99},null,null,null,null,null,{"$f":"CH67","v":104},null,null,null,null,null,null,null,null,null,null,null,{"$f":"BD72","v":"Monday"},null,null,null,null,null,null,null,"Friday",null,null,null,null,null,55,null,null,null,null,null,97,null,null,null,null,null,70,null,null,null,null,null,93,null,null,null,null,null,50,null,null,null,null,null,null,55,97,70,93,50]
[null,null,null,null,null,"Tuesday",null,null,null,null,null,{"$f":"BJ68","v":79},null,null,null,null,null,{"$f":"BP68","v":81},null,null,null,null,null,{"$f":"BV68","v":97},null,null,null,null,null,{"$f":"CB68","v":73},null,null,null,null,null,{"$f":"CH68","v":104},null,null,null,null,null,null,null,null,null,null,null,{"$f":"IF(AW72=1,\"largest\",\"smallest\")","v":"smallest"},{"$f":"ROUND(RAND()*(1-0)+0,0)","v":0},null,null,null,null,null,null,{"$f":"HLOOKUP(BD66,BD66:BI71,BC67)","v":"Monday"},null,null,null,null,null,{"$f":"HLOOKUP(BJ66,BJ66:BO71,BC67)","v":87},null,null,null,null,null,{"$f":"HLOOKUP(BP66,BP66:BU71,BC67)","v":94},null,null,null,null,null,{"$f":"HLOOKUP(BV66,BV66:CA71,BC67)","v":78},null,null,null,null,null,{"$f":"HLOOKUP(CB66,CB66:CG71,BC67)","v":99},null,null,null,null,null,{"$f":"HLOOKUP(CH66,CH66:CM71,BC67)","v":104},null,null,null,null,null,null,40,95,74,82,53]
[null,null,null,null,null,"Wednesday",null,null,null,null,null,80,null,null,null,null,null,95,null,null,null,null,null,69,null,null,null,null,null,57,null,null,null,null,null,81,null,null,null,null,null,null,null,null,null,null,null,{"$f":"IF(AW72=1,LARGE(BJ72:CM72,1),SMALL(BJ72:CM72,1))","v":78},null,null,null,null,null,null,null,{"$f":"IF(BC66=1,BJ66,IF(BC66=2,BP66,IF(BC66=3,BV66,IF(BC66=4,CB66,IF(BC66=5,CH66,0)))))","v":"10:00 - 10:59"},null,null,null,null,null,{"$f":"IF(BC66=1,ROUND(AVERAGE(BJ67:BO71),0),IF(BC66=2,ROUND(AVERAGE(BP67:BU71),0),IF(BC66=3,ROUND(AVERAGE(BV67:CA71),0),IF(BC66=4,ROUND(AVERAGE(CB67:CG71),0),IF(BC66=5,ROUND(AVERAGE(CH67:CM71),0),0)))))","v":77}]
[null,null,null,null,null,"Thursday",null,null,null,null,null,73,null,null,null,null,null,70,null,null,null,null,null,95,null,null,null,null,null,62,null,null,null,null,null,74,null,null,null,null,null,null,null,null,null,null,null,{"$f":"IF(AV73=BJ72,BJ66,IF(AV73=BP72,BP66,IF(AV73=BV72,BV66,IF(AV73=CB72,CB66,IF(AV73=CH72,CH66,0)))))","v":"09:00 - 09:59"}]
[null,null,null,null,null,"Friday",null,null,null,null,null,55,null,null,null,null,null,97,null,null,null,null,null,70,null,null,null,null,null,93,null,null,null,null,null,50]
[]
[null,{"$f":"\"In which hour-long period did the \"&AV72&\" number of cars pass the junction on \"&AV71&\" ?\"","v":"In which hour-long period did the smallest number of cars pass the junction on Monday ?"}]
[null,null,null,null,null,null,null,null,null,null,null,null,null,null,null,null,null,null,null,null,null,null,null,null,null,null,null,null,null,null,null,null,null,null,null,null,null,null,null,null,null,null,null,null,null,null,null,{"$f":"BD73","v":"10:00 - 10:59"}]
[null,{"$f":"\"Calculate the mean number of cars for the hour-long period \"&AV78&\" to the nearest car.\"","v":"Calculate the mean number of cars for the hour-long period 10:00 - 10:59 to the nearest car."},null,null,null,null,null,null,null,null,null,null,null,null,null,null,null,null,null,null,null,null,null,null,null,null,null,null,null,null,null,null,null,null,null,null,null,null,null,null,null,null,null,null,null,null,null,{"$f":"BJ73","v":77}]
[]
[]
[null,{"$f":"\"This is what you need to make a Indian spiced sherpherd's pie.\"","v":"This is what you need to make a Indian spiced sherpherd's pie."}]
[null,null,null,null,null,null,null,null,null,null,null,null,null,null,null,null,null,null,null,null,null,null,null,null,null,null,null,null,null,null,null,null,null,null,null,null,null,null,null,null,null,null,null,null,null,null,null,null,{"$f":"ROUND(RAND()*(3-1)+1,0)","v":2}]
[null,null,{"$f":"\"Serves \"&AV84&\" people\"","v":"Serves 4 people"},null,null,null,null,null,null,null,null,null,null,null,null,null,null,null,null,null,null,null,null,null,null,null,null,null,{"$f":"\"Serves \"&AW84&\" people\"","v":"Serves 10 people"},null,null,null,null,null,null,null,null,null,null,null,null,null,null,null,null,null,null,{"$f":"ROUND(RAND()*(2-1)+1,0)*2","v":4},{"$f":"AV84*AW85","v":10}]
[null,null,null,null,null,null,null,null,null,null,null,null,null,null,null,null,null,null,null,null,null,null,null,null,null,null,null,null,null,null,null,null,null,null,null,null,null,null,null,null,null,null,null,null,null,null,null,null,{"$f":"ROUND(RAND()*(4-1)+1,0)+0.5","v":2.5}]
[null,null,{"$f":"AV86","v":500},null,null,"g lean minced lamb",null,null,null,null,null,null,null,null,null,null,null,null,null,null,null,null,null,null,null,null,null,null,null,{"$f":"AW86","v":1250},null,null,"g lean minced lamb",null,null,null,null,null,null,null,null,null,null,null,null,null,null,500,{"$f":"AV86*$AW$85","v":1250}]
[null,null,{"$f":"AV87","v":1},null,null,"onion",null,null,null,null,null,null,null,null,null,null,null,null,null,null,null,null,null,null,null,null,null,null,null,null,null,null,"onion",null,null,null,null,null,null,null,null,null,null,null,null,null,null,1,{"$f":"AV87*$AW$85","v":2.5}]
[null,null,4,null,null,"carrots",null,null,null,null,null,null,null,null,null,null,null,null,null,null,null,null,null,null,null,null,null,null,null,null,null,null,"carrots",null,null,null,null,null,null,null,null,null,null,null,null,null,null,4,10]
[null,null,2,null,null,"tablespoons of garma masla",null,null,null,null,null,null,null,null,null,null,null,null,null,null,null,null,null,null,null,null,null,null,null,null,null,null,"tablespoons of garma masla",null,null,null,null,null,null,null,null,null,null,null,null,null,null,2,5]
[null,null,500,null,null,"ml chicken stock",null,null,null,null,null,null,null,null,null,null,null,null,null,null,null,null,null,null,null,null,null,null,null,null,null,null,"ml chicken stock",null,null,null,null,null,null,null,null,null,null,null,null,null,null,500,1250]
[null,null,200,null,null,"peas",null,null,null,null,null,null,null,null,null,null,null,null,null,null,null,null,null,null,null,null,null,null,null,{"$f":"AW91","v":500},null,null,"peas",null,null,null,null,null,null,null,null,null,null,null,null,null,null,200,500]
[null,null,800,null,null,"potatoes",null,null,null,null,null,null,null,null,null,null,null,null,null,null,null,null,null,null,null,null,null,null,null,null,null,null,"potatoes",null,null,null,null,null,null,null,null,null,null,null,null,null,null,800,2000]
[null,null,1,null,null,"teaspoons turmeric",null,null,null,null,null,null,null,null,null,null,null,null,null,null,null,null,null,null,null,null,null,null,null,null,null,null,"teaspoons turmeric",null,null,null,null,null,null,null,null,null,null,null,null,null,null,1,2.5]
[null,null,0.5,null,null,"lemon",null,null,null,null,null,null,null,null,null,null,null,null,null,null,null,null,null,null,null,null,null,null,null,null,null,null,"lemon",null,null,null,null,null,null,null,null,null,null,null,null,null,null,0.5,1.25]